fUST/lending_fUST_20241006
["ID","MTS","AMOUNT","RATE_DAILY","PERIOD"]
[339943297,1728175852274,-151.0,0.0001386,2]
[339943298,1728175852284,-193.437512,0.0001386,2]
[339943299,1728175852295,-151.0,0.0001386,2]
[339943300,1728175852306,-151.0,0.0001386,2]
[339943301,1728175852317,-958.337039,0.0001386,2]
[339943302,1728175852328,-958.337039,0.0001386,2]
[339943303,1728175852337,-257.858251,0.0001386,2]
[339943304,1728175852349,-257.858251,0.0001386,2]
[339943305,1728175852359,-415.929796,0.0001386,2]
[339943306,1728175852370,-415.929796,0.0001386,2]
[339943307,1728175852381,-194.328036,0.0001386,2]
[339943308,1728175852391,-194.328036,0.0001386,2]
[339943309,1728175852403,-415.029228,0.0001386,2]
[339943310,1728175852416,-415.029228,0.0001386,2]
[339943311,1728175852427,-151.0,0.0001386,2]
[339943312,1728175852437,-262.442052,0.0001386,2]
[339943313,1728175852447,-273.664048,0.0001386,2]
[339943314,1728175852458,-159.195128,0.0001386,2]
[339943315,1728175852468,-159.195128,0.0001386,2]
[339943316,1728175852478,-1684.555268,0.0001386,2]
[339943317,1728175852490,-151.0,0.0001386,2]
[339943318,1728175852499,-151.0,0.0001386,2]
[339943319,1728175852508,-151.0,0.0001386,2]
[339943320,1728175852518,-182.326201,0.0001386,2]
[339943321,1728175852527,-514.698846,0.0001386,2]
[339943322,1728175852536,-182.326201,0.0001386,2]
[339943323,1728175852545,-514.698846,0.0001386,2]
[339943324,1728175852554,-264.820244,0.0001386,2]
[339943325,1728175852563,-264.820244,0.0001386,2]
[339943326,1728175852573,-634.933218,0.0001386,2]
[339943327,1728175852582,-634.933218,0.0001386,2]
[339943328,1728175852591,-568.693503,0.0001386,2]
[339943329,1728175852600,-568.693503,0.0001386,2]
[339943330,1728175852610,-151.0,0.0001386,2]
[339943331,1728175852619,-151.0,0.0001386,2]
[339943332,1728175852628,-619.658702,0.0001386,2]
[339943333,1728175852637,-619.658702,0.0001386,2]
[339943334,1728175852646,-151.0,0.0001386,2]
[339943335,1728175852655,-301.549267,0.0001386,2]
[339943336,1728175852665,-301.549267,0.0001386,2]
[339943337,1728175852674,-595.432866,0.0001386,2]
[339943338,1728175852684,-595.432866,0.0001386,2]
[339943339,1728175852693,-151.0,0.0001386,2]
[339943340,1728175852703,-151.0,0.0001386,2]
[339943341,1728175852712,-151.0,0.0001386,2]
[339943342,1728175852721,-265.242283,0.0001386,2]
[339943343,1728175852731,-1000.0,0.00013862,2]
[339943344,1728175852741,-500.0,0.00013873,2]
[339943345,1728175852750,-500.0,0.00013873,2]
[339943346,1728175852759,-500.0,0.00013873,2]
[339943347,1728175852769,-500.0,0.00013873,2]
[339943348,1728175852778,-1100.0,0.00013876,2]
[339943349,1728175852788,-1000.0,0.00013895,2]
[339943350,1728175852798,-150.112233,0.000139,2]
[339943351,1728175852809,-150.112233,0.000139,2]
[339943352,1728175852818,-150.112237,0.000139,2]
[339943353,1728175852827,-300.0,0.000139,4]
[339943354,1728175852836,-1000.0,0.00013903,2]
[339943355,1728175852846,-500.0,0.00013916,2]
[339943356,1728175852855,-1500.0,0.00013947,2]
[339943357,1728175852866,-1334.31411784,0.00013947,2]
[339943358,1728175852877,-12093.45889689,0.00013971,2]
[339943359,1728175852887,-247.39182847,0.00013971,2]
[339943360,1728175852899,-160.0,0.00013971,2]
[339943361,1728175852908,-511.1255354,0.00013972,2]
[339943362,1728175852917,-151.0,0.00013972,2]
[339943363,1728175852927,-151.0,0.00013972,2]
[339943364,1728175852936,-151.0,0.00013972,2]
[339943365,1728175852946,-516.02767456,0.00013972,2]
[339943366,1728175852956,-500.0,0.00013972,2]
[339943367,1728175852965,-511.43573774,0.00013972,2]
[339943368,1728175852974,-500.0,0.00013972,2]
[339943369,1728175852985,-175.98233897,0.00013972,2]
[339943370,1728175852996,-500.0,0.00013972,2]
[339943371,1728175853006,-500.0,0.00013972,2]
[339943372,1728175853016,-500.0,0.00013972,2]
[339943373,1728175853026,-500.0,0.00013972,2]
[339943374,1728175853037,-560.1,0.00013972,2]
[339943375,1728175853047,-500.0,0.00013972,2]
[339943376,1728175853059,-500.0,0.00013972,2]
[339943377,1728175853070,-500.0,0.00013972,2]
[339943378,1728175853081,-1018.25,0.00013972,2]
[339943379,1728175853093,-528.25,0.00013972,2]
[339943380,1728175853105,-500.0,0.00013972,2]
[339943381,1728175853116,-599.34,0.00013972,2]
[339943382,1728175853126,-500.0,0.00013972,2]
[339943383,1728175853136,-500.0,0.00013972,2]
[339943384,1728175853149,-165.94670431,0.00013972,2]
[339943385,1728175853160,-500.0,0.00013972,2]
[339943386,1728175853170,-500.0,0.00013972,2]
[339943387,1728175853179,-235.97013785,0.00013972,2]
[339943388,1728175853189,-500.0,0.00013972,2]
[339943389,1728175853198,-500.0,0.00013972,2]
[339943390,1728175853207,-500.0,0.00013972,2]
[339943391,1728175853216,-552.97,0.00013972,2]
[339943392,1728175853225,-500.0,0.00013972,2]
[339943393,1728175853234,-502.22,0.00013972,2]
[339943394,1728175853243,-500.0,0.00013972,2]
[339943395,1728175853254,-500.0,0.00013972,2]
[339943396,1728175853264,-528.78,0.00013972,2]
[339943397,1728175853274,-753.89,0.00013972,2]
[339943398,1728175853284,-500.0,0.00013972,2]
[339943399,1728175853293,-704.83,0.00013972,2]
[339943400,1728175853302,-500.0,0.00013972,2]
[339943401,1728175853311,-500.0,0.00013972,2]
[339943402,1728175853322,-500.0,0.00013972,2]
[339943403,1728175853332,-500.0,0.00013972,2]
[339943404,1728175853344,-500.0,0.00013972,2]
[339943405,1728175853355,-500.0,0.00013972,2]
[339943406,1728175853486,-500.0,0.00013972,2]
[339943407,1728175853496,-500.0,0.00013972,2]
[339943408,1728175853505,-500.0,0.00013972,2]
[339943409,1728175853514,-500.0,0.00013972,2]
[339943410,1728175853524,-500.0,0.00013972,2]
[339943411,1728175853536,-500.0,0.00013972,2]
[339943412,1728175853545,-500.0,0.00013972,2]
[339943413,1728175853556,-500.0,0.00013972,2]
[339943414,1728175853566,-500.0,0.00013972,2]
[339943415,1728175853579,-500.0,0.00013972,2]
[339943416,1728175853590,-500.0,0.00013972,2]
[339943417,1728175853602,-500.0,0.00013972,2]
[339943418,1728175853614,-500.0,0.00013972,2]
[339943419,1728175853623,-646.31,0.00013972,2]
[339943420,1728175853634,-500.0,0.00013972,2]
[339943421,1728175853644,-151.0,0.00013972,2]
[339943422,1728175853655,-151.0,0.00013972,2]
[339943423,1728175853666,-151.0,0.00013972,2]
[339943424,1728175853676,-500.0,0.00013972,2]
[339943425,1728175853687,-500.0,0.00013972,2]
[339943426,1728175853698,-500.0,0.00013972,2]
[339943427,1728175853710,-500.0,0.00013972,2]
[339943428,1728175853720,-519.01,0.00013972,2]
[339943429,1728175853733,-151.0,0.00013972,2]
[339943430,1728175853743,-151.0,0.00013972,2]
[339943431,1728175853753,-151.0,0.00013972,2]
[339943432,1728175853763,-500.0,0.00013972,2]
[339943433,1728175853772,-500.0,0.00013972,2]
[339943434,1728175853782,-500.0,0.00013972,2]
[339943435,1728175853791,-739.8,0.00013972,2]
[339943436,1728175853801,-500.0,0.00013972,2]
[339943437,1728175853809,-500.0,0.00013972,2]
[339943438,1728175853819,-500.0,0.00013972,2]
[339943439,1728175853827,-276.14,0.00013972,2]
[339943440,1728175853836,-500.0,0.00013972,2]
[339943441,1728175853846,-500.0,0.00013972,2]
[339943442,1728175853856,-500.0,0.00013972,2]
[339943443,1728175853866,-500.0,0.00013972,2]
[339943444,1728175853876,-162.36161407,0.00013972,2]
[339943445,1728175853887,-528.12,0.00013972,2]
[339943446,1728175853899,-500.0,0.00013972,2]
[339943447,1728175853910,-565.91,0.00013972,2]
[339943448,1728175853922,-500.0,0.00013972,2]
[339943449,1728175853932,-500.0,0.00013972,2]
[339943450,1728175853944,-500.0,0.00013972,2]
[339943451,1728175853956,-782.19,0.00013972,2]
[339943452,1728175853967,-631.24,0.00013972,2]
[339943453,1728175853976,-500.0,0.00013972,2]
[339943454,1728175853995,-540.07228377,0.00013972,2]
[339943455,1728175854004,-500.0,0.00013972,2]
[339943456,1728175854013,-500.0,0.00013972,2]
[339943457,1728175854023,-500.0,0.00013972,2]
[339943458,1728175854032,-681.71,0.00013972,2]
[339943459,1728175854041,-500.0,0.00013972,2]
[339943460,1728175854052,-500.0,0.00013972,2]
[339943461,1728175854061,-549.93,0.00013972,2]
[339943462,1728175854070,-500.0,0.00013972,2]
[339943463,1728175854080,-151.0,0.00013972,2]
[339943464,1728175854088,-500.0,0.00013972,2]
[339943465,1728175854098,-151.0,0.00013972,2]
[339943466,1728175854108,-168.660808,0.00013972,2]
[339943467,1728175854117,-500.0,0.00013972,2]
[339943468,1728175854127,-424.22256893,0.00013972,2]
[339943469,1728175854136,-500.0,0.00013972,2]
[339943470,1728175854145,-500.0,0.00013972,2]
[339943471,1728175854154,-502.3308244,0.00013972,2]
[339943472,1728175854164,-468.46777692,0.00013972,2]
[339943473,1728175854174,-500.0,0.00013972,2]
[339943474,1728175854183,-500.0,0.00013972,2]
[339943475,1728175854193,-500.0,0.00013972,2]
[339943476,1728175854202,-176.476098,0.00013972,2]
[339943477,1728175854212,-176.476098,0.00013972,2]
[339943478,1728175854222,-176.476098,0.00013972,2]
[339943479,1728175854233,-151.0,0.00013972,2]
[339943480,1728175854242,-161.513072,0.00013972,2]
[339943481,1728175854252,-176.476098,0.00013972,2]
[339943482,1728175854261,-176.476098,0.00013972,2]
[339943483,1728175854270,-176.476098,0.00013972,2]
[339943484,1728175854279,-176.476098,0.00013972,2]
[339943485,1728175854288,-500.0,0.00013972,2]
[339943486,1728175854297,-500.0,0.00013972,2]
[339943487,1728175854306,-500.0,0.00013972,2]
[339943488,1728175854316,-808.26,0.00013972,2]
[339943489,1728175854326,-500.0,0.00013972,2]
[339943490,1728175854335,-500.0,0.00013972,2]
[339943491,1728175854344,-500.0,0.00013972,2]
[339943492,1728175854353,-661.51,0.00013972,2]
[339943493,1728175854363,-500.0,0.00013972,2]
[339943494,1728175854372,-887.34,0.00013972,2]
[339943495,1728175854381,-500.0,0.00013972,2]
[339943496,1728175854391,-500.0,0.00013972,2]
[339943497,1728175854401,-514.58453086,0.00013972,2]
[339943498,1728175854410,-500.0,0.00013972,2]
[339943499,1728175854419,-500.0,0.00013972,2]
[339943500,1728175854428,-500.0,0.00013972,2]
[339943501,1728175854437,-500.0,0.00013972,2]
[339943502,1728175854446,-500.0,0.00013972,2]
[339943503,1728175854456,-500.0,0.00013972,2]
[339943504,1728175854465,-500.0,0.00013972,2]
[339943505,1728175854474,-609.58,0.00013972,2]
[339943506,1728175854485,-500.0,0.00013972,2]
[339943507,1728175854497,-151.0,0.00013972,2]
[339943508,1728175854507,-151.0,0.00013972,2]
[339943509,1728175854516,-702.32,0.00013972,2]
[339943510,1728175854525,-151.0,0.00013972,2]
[339943511,1728175854534,-151.0,0.00013972,2]
[339943512,1728175854544,-500.0,0.00013972,2]
[339943513,1728175854554,-500.0,0.00013972,2]
[339943514,1728175854563,-500.0,0.00013972,2]
[339943515,1728175854572,-500.0,0.00013972,2]
[339943516,1728175854581,-500.0,0.00013972,2]
[339943517,1728175854590,-500.0,0.00013972,2]
[339943518,1728175854600,-500.0,0.00013972,2]
[339943519,1728175854609,-500.0,0.00013972,2]
[339943520,1728175854618,-500.0,0.00013972,2]
[339943521,1728175854627,-500.0,0.00013972,2]
[339943522,1728175854636,-500.0,0.00013972,2]
[339943523,1728175854645,-521.11,0.00013972,2]
[339943524,1728175854655,-151.0,0.00013972,2]
[339943525,1728175854664,-745.59,0.00013972,2]
[339943526,1728175854674,-151.0,0.00013972,2]
[339943527,1728175854683,-151.0,0.00013972,2]
[339943528,1728175854692,-151.0,0.00013972,2]
[339943529,1728175854701,-500.0,0.00013972,2]
[339943530,1728175854710,-500.0,0.00013972,2]
[339943531,1728175854719,-700.34,0.00013972,2]
[339943532,1728175854729,-500.0,0.00013972,2]
[339943533,1728175854738,-500.0,0.00013972,2]
[339943534,1728175854748,-500.0,0.00013972,2]
[339943535,1728175854757,-1073.21,0.00013972,2]
[339943536,1728175854766,-500.0,0.00013972,2]
[339943537,1728175854775,-500.0,0.00013972,2]
[339943538,1728175854785,-704.24,0.00013972,2]
[339943539,1728175854794,-500.0,0.00013972,2]
[339943540,1728175854803,-500.0,0.00013972,2]
[339943541,1728175854815,-151.0,0.00013972,2]
[339943542,1728175854825,-151.0,0.00013972,2]
[339943543,1728175854835,-151.0,0.00013972,2]
[339943544,1728175854847,-151.0,0.00013972,2]
[339943545,1728175854858,-500.0,0.00013972,2]
[339943546,1728175854868,-153.984215,0.00013972,2]
[339943547,1728175854879,-501.5227972,0.00013972,2]
[339943548,1728175854888,-500.0,0.00013972,2]
[339943549,1728175854898,-500.0,0.00013972,2]
[339943550,1728175854907,-500.0,0.00013972,2]
[339943551,1728175854917,-652.77,0.00013972,2]
[339943552,1728175854927,-500.0,0.00013972,2]
[339943553,1728175854938,-607.87,0.00013972,2]
[339943554,1728175854948,-151.0,0.00013972,2]
[339943555,1728175854958,-151.0,0.00013972,2]
[339943556,1728175854967,-151.0,0.00013972,2]
[339943557,1728175854979,-151.0,0.00013972,2]
[339943558,1728175854989,-788.88,0.00013972,2]
[339943559,1728175855000,-500.0,0.00013972,2]
[339943560,1728175855010,-500.0,0.00013972,2]
[339943561,1728175855020,-500.0,0.00013972,2]
[339943562,1728175855031,-1149.55,0.00013972,2]
[339943563,1728175855040,-577.74,0.00013972,2]
[339943564,1728175855053,-500.0,0.00013972,2]
[339943565,1728175855065,-500.0,0.00013972,2]
[339943566,1728175855075,-691.29,0.00013972,2]
[339943567,1728175855086,-500.0,0.00013972,2]
[339943568,1728175855099,-563.46,0.00013972,2]
[339943569,1728175855112,-500.0,0.00013972,2]
[339943570,1728175855125,-500.0,0.00013972,2]
[339943571,1728175855135,-557.68364624,0.00013972,2]
[339943572,1728175855146,-845.78,0.00013972,2]
[339943573,1728175855156,-500.0,0.00013972,2]
[339943574,1728175855168,-549.07,0.00013972,2]
[339943575,1728175855179,-500.0,0.00013972,2]
[339943576,1728175855189,-550.83506309,0.00013972,2]
[339943577,1728175855200,-500.0,0.00013972,2]
[339943578,1728175855211,-500.0,0.00013972,2]
[339943579,1728175855224,-880.44,0.00013972,2]
[339943580,1728175855238,-500.0,0.00013972,2]
[339943581,1728175855247,-500.0,0.00013972,2]
[339943582,1728175855256,-500.0,0.00013972,2]
[339943583,1728175855266,-500.0,0.00013972,2]
[339943584,1728175855276,-715.14,0.00013972,2]
[339943585,1728175855287,-500.0,0.00013972,2]
[339943586,1728175855297,-500.0,0.00013972,2]
[339943587,1728175855307,-955.92,0.00013972,2]
[339943588,1728175855318,-500.0,0.00013972,2]
[339943589,1728175855329,-500.0,0.00013972,2]
[339943590,1728175855341,-858.99,0.00013972,2]
[339943591,1728175855352,-500.0,0.00013972,2]
[339943592,1728175855362,-500.0,0.00013972,2]
[339943593,1728175855374,-921.68,0.00013972,2]
[339943594,1728175855385,-518.3,0.00013972,2]
[339943595,1728175855396,-500.0,0.00013972,2]
[339943596,1728175855407,-579.61,0.00013972,2]
[339943597,1728175855418,-418.777642,0.00013972,2]
[339943598,1728175855429,-418.777642,0.00013972,2]
[339943599,1728175855439,-500.0,0.00013972,2]
[339943600,1728175855450,-418.777642,0.00013972,2]
[339943601,1728175855460,-418.777642,0.00013972,2]
[339943602,1728175855471,-500.0,0.00013972,2]
[339943603,1728175855484,-418.777642,0.00013972,2]
[339943604,1728175855494,-418.777642,0.00013972,2]
[339943605,1728175855507,-418.777642,0.00013972,2]
[339943606,1728175855517,-575.51,0.00013972,2]
[339943607,1728175855526,-418.777642,0.00013972,2]
[339943608,1728175855539,-500.0,0.00013972,2]
[339943609,1728175855548,-862.11,0.00013972,2]
[339943610,1728175855557,-500.0,0.00013972,2]
[339943611,1728175855566,-500.0,0.00013972,2]
[339943612,1728175855574,-500.0,0.00013972,2]
[339943613,1728175855584,-500.0,0.00013972,2]
[339943614,1728175855593,-500.0,0.00013972,2]
[339943615,1728175855603,-500.0,0.00013972,2]
[339943616,1728175855612,-500.0,0.00013972,2]
[339943617,1728175855623,-939.8,0.00013972,2]
[339943618,1728175855634,-567.58,0.00013972,2]
[339943619,1728175855643,-500.0,0.00013972,2]
[339943620,1728175855653,-500.0,0.00013972,2]
[339943621,1728175855663,-795.87,0.00013972,2]
[339943622,1728175855674,-500.0,0.00013972,2]
[339943623,1728175855684,-151.0,0.00013972,2]
[339943624,1728175855694,-151.0,0.00013972,2]
[339943625,1728175855703,-151.0,0.00013972,2]
[339943626,1728175855714,-500.0,0.00013972,2]
[339943627,1728175855724,-151.0,0.00013972,2]
[339943628,1728175855736,-538.55,0.00013972,2]
[339943629,1728175855746,-500.0,0.00013972,2]
[339943630,1728175855756,-500.0,0.00013972,2]
[339943631,1728175855886,-151.0,0.00013972,2]
[339943632,1728175855897,-151.0,0.00013972,2]
[339943633,1728175855906,-1003.39,0.00013972,2]
[339943634,1728175855917,-151.0,0.00013972,2]
[339943635,1728175855926,-151.0,0.00013972,2]
[339943636,1728175855936,-581.29,0.00013972,2]
[339943637,1728175855945,-151.0,0.00013972,2]
[339943638,1728175855955,-151.0,0.00013972,2]
[339943639,1728175855964,-151.0,0.00013972,2]
[339943640,1728175855973,-151.0,0.00013972,2]
[339943641,1728175855985,-500.0,0.00013972,2]
[339943642,1728175855994,-1959.72,0.00013972,2]
[339943643,1728175856004,-849.8,0.00013972,2]
[339943644,1728175856013,-500.0,0.00013972,2]
[339943645,1728175856022,-262.68034295,0.00013972,2]
[339943646,1728175856032,-500.0,0.00013972,2]
[339943647,1728175856042,-500.0,0.00013972,2]
[339943648,1728175856052,-500.0,0.00013972,2]
[339943649,1728175856062,-500.0,0.00013972,2]
[339943650,1728175856072,-500.0,0.00013972,2]
[339943651,1728175856081,-717.22,0.00013972,2]
[339943652,1728175856090,-500.0,0.00013972,2]
[339943653,1728175856100,-500.0,0.00013972,2]
[339943654,1728175856110,-500.0,0.00013972,2]
[339943655,1728175856120,-557.48,0.00013972,2]
[339943656,1728175856129,-500.0,0.00013972,2]
[339943657,1728175856138,-500.0,0.00013972,2]
[339943658,1728175856148,-613.02,0.00013972,2]
[339943659,1728175856157,-500.0,0.00013972,2]
[339943660,1728175856166,-500.0,0.00013972,2]
[339943661,1728175856175,-500.0,0.00013972,2]
[339943662,1728175856184,-633.57,0.00013972,2]
[339943663,1728175856194,-500.0,0.00013972,2]
[339943664,1728175856203,-508.23,0.00013972,2]
[339943665,1728175856212,-500.0,0.00013972,2]
[339943666,1728175856222,-500.0,0.00013972,2]
[339943667,1728175856232,-839.07,0.00013972,2]
[339943668,1728175856242,-500.0,0.00013972,2]
[339943669,1728175856251,-500.0,0.00013972,2]
[339943670,1728175856261,-958.337039,0.00013972,2]
[339943671,1728175856271,-958.337039,0.00013972,2]
[339943672,1728175856280,-958.337039,0.00013972,2]
[339943673,1728175856289,-958.337039,0.00013972,2]
[339943674,1728175856299,-500.0,0.00013972,2]
[339943675,1728175856308,-500.0,0.00013972,2]
[339943676,1728175856318,-958.337039,0.00013972,2]
[339943677,1728175856329,-958.337039,0.00013972,2]
[339943678,1728175856338,-500.0,0.00013972,2]
[339943679,1728175856348,-958.337039,0.00013972,2]
[339943680,1728175856357,-500.0,0.00013972,2]
[339943681,1728175856366,-958.337039,0.00013972,2]
[339943682,1728175856376,-500.0,0.00013972,2]
[339943683,1728175856386,-518.81,0.00013972,2]
[339943684,1728175856396,-500.0,0.00013972,2]
[339943685,1728175856406,-1474.28,0.00013972,2]
[339943686,1728175856417,-500.0,0.00013972,2]
[339943687,1728175856427,-699.49,0.00013972,2]
[339943688,1728175856439,-257.858251,0.00013972,2]
[339943689,1728175856451,-257.858251,0.00013972,2]
[339943690,1728175856461,-257.858251,0.00013972,2]
[339943691,1728175856472,-257.858251,0.00013972,2]
[339943692,1728175856485,-500.0,0.00013972,2]
[339943693,1728175856496,-500.0,0.00013972,2]
[339943694,1728175856506,-936.43,0.00013972,2]
[339943695,1728175856515,-1395.8,0.00013972,2]
[339943696,1728175856526,-885.51,0.00013972,2]
[339943697,1728175856539,-257.858251,0.00013972,2]
[339943698,1728175856551,-257.858251,0.00013972,2]
[339943699,1728175856562,-257.858251,0.00013972,2]
[339943700,1728175856573,-257.858251,0.00013972,2]
[339943701,1728175856584,-717.5,0.00013972,2]
[339943702,1728175856594,-415.929796,0.00013972,2]
[339943703,1728175856605,-415.929796,0.00013972,2]
[339943704,1728175856618,-500.0,0.00013972,2]
[339943705,1728175856629,-415.929796,0.00013972,2]
[339943706,1728175856640,-415.929796,0.00013972,2]
[339943707,1728175856650,-500.0,0.00013972,2]
[339943708,1728175856662,-152.74082099,0.00013972,2]
[339943709,1728175856674,-415.929796,0.00013972,2]
[339943710,1728175856684,-415.929796,0.00013972,2]
[339943711,1728175856695,-415.929796,0.00013972,2]
[339943712,1728175856706,-500.0,0.00013972,2]
[339943713,1728175856716,-415.9298,0.00013972,2]
[339943714,1728175856728,-395.96149059,0.00013972,2]
[339943715,1728175856740,-500.0,0.00013972,2]
[339943716,1728175856752,-629.17,0.00013972,2]
[339943717,1728175856763,-500.0,0.00013972,2]
[339943718,1728175856774,-742.46,0.00013972,2]
[339943719,1728175856784,-692.97,0.00013972,2]
[339943720,1728175856794,-1504.09,0.00013972,2]
[339943721,1728175856805,-500.0,0.00013972,2]
[339943722,1728175856815,-545.19,0.00013972,2]
[339943723,1728175856825,-209.38833157,0.00013972,2]
[339943724,1728175856836,-517.93,0.00013972,2]
[339943725,1728175856846,-500.0,0.00013972,2]
[339943726,1728175856856,-500.0,0.00013972,2]
[339943727,1728175856865,-500.0,0.00013972,2]
[339943728,1728175856875,-500.0,0.00013972,2]
[339943729,1728175856885,-194.328036,0.00013972,2]
[339943730,1728175856895,-194.328036,0.00013972,2]
[339943731,1728175856908,-194.328036,0.00013972,2]
[339943732,1728175856918,-500.0,0.00013972,2]
[339943733,1728175856930,-194.328036,0.00013972,2]
[339943734,1728175856942,-500.0,0.00013972,2]
[339943735,1728175856952,-500.0,0.00013972,2]
[339943736,1728175856962,-194.328036,0.00013972,2]
[339943737,1728175856974,-519.42,0.00013972,2]
[339943738,1728175856984,-194.328036,0.00013972,2]
[339943739,1728175856995,-194.328036,0.00013972,2]
[339943740,1728175857008,-194.328036,0.00013972,2]
[339943741,1728175857019,-2142.64,0.00013972,2]
[339943742,1728175857030,-500.0,0.00013972,2]
[339943743,1728175857041,-500.0,0.00013972,2]
[339943744,1728175857050,-500.0,0.00013972,2]
[339943745,1728175857063,-500.0,0.00013972,2]
[339943746,1728175857077,-500.0,0.00013972,2]
[339943747,1728175857087,-500.0,0.00013972,2]
[339943748,1728175857097,-778.05,0.00013972,2]
[339943749,1728175857110,-500.0,0.00013972,2]
[339943750,1728175857123,-693.17,0.00013972,2]
[339943751,1728175857133,-1252.54,0.00013972,2]
[339943752,1728175857144,-500.0,0.00013972,2]
[339943753,1728175857155,-562.84177196,0.00013972,2]
[339943754,1728175857167,-500.0,0.00013972,2]
[339943755,1728175857177,-500.0,0.00013972,2]
[339943756,1728175857187,-415.029228,0.00013972,2]
[339943757,1728175857199,-415.029228,0.00013972,2]
[339943758,1728175857210,-415.029228,0.00013972,2]
[339943759,1728175857221,-415.029228,0.00013972,2]
[339943760,1728175857231,-500.0,0.00013972,2]
[339943761,1728175857240,-500.0,0.00013972,2]
[339943762,1728175857252,-500.0,0.00013972,2]
[339943763,1728175857262,-415.029228,0.00013972,2]
[339943764,1728175857274,-151.0,0.00013972,2]
[339943765,1728175857286,-415.029228,0.00013972,2]
[339943766,1728175857299,-151.0,0.00013972,2]
[339943767,1728175857310,-151.0,0.00013972,2]
[339943768,1728175857322,-415.029228,0.00013972,2]
[339943769,1728175857333,-151.0,0.00013972,2]
[339943770,1728175857344,-415.02922,0.00013972,2]
[339943771,1728175857354,-500.0,0.00013972,2]
[339943772,1728175857366,-500.0,0.00013972,2]
[339943773,1728175857379,-500.0,0.00013972,2]
[339943774,1728175857389,-500.0,0.00013972,2]
[339943775,1728175857401,-500.0,0.00013972,2]
[339943776,1728175857412,-500.0,0.00013972,2]
[339943777,1728175857423,-500.0,0.00013972,2]
[339943778,1728175857433,-500.0,0.00013972,2]
[339943779,1728175857444,-500.0,0.00013972,2]
[339943780,1728175857456,-500.0,0.00013972,2]
[339943781,1728175857467,-447.21659269,0.00013972,2]
[339943782,1728175857477,-500.0,0.00013972,2]
[339943783,1728175857490,-500.0,0.00013972,2]
[339943784,1728175857503,-608.12,0.00013972,2]
[339943785,1728175857513,-500.0,0.00013972,2]
[339943786,1728175857524,-500.0,0.00013972,2]
[339943787,1728175857538,-500.0,0.00013972,2]
[339943788,1728175857549,-159.195128,0.00013972,2]
[339943789,1728175857560,-159.195128,0.00013972,2]
[339943790,1728175857572,-500.0,0.00013972,2]
[339943791,1728175857582,-159.195128,0.00013972,2]
[339943792,1728175857593,-159.195128,0.00013972,2]
[339943793,1728175857603,-793.23,0.00013972,2]
[339943794,1728175857616,-1684.555268,0.00013972,2]
[339943795,1728175857628,-500.0,0.00013972,2]
[339943796,1728175857638,-689.38,0.00013972,2]